bitfinex/quotes_SOLUSD_20250917
["timestamp","ask_amount","ask_price","bid_price","bid_amount"]
[1758145823073,0.06,240.62,240.61,3.89411867]
[1758145823257,0.06,240.62,240.61,17.48971268]
[1758145823458,0.06,240.62,240.61,16.78971268]
[1758145823671,0.06,240.62,240.61,17.48971268]
[1758145823868,0.06,240.62,240.61,16.78971268]
[1758145824257,0.06,240.62,240.61,14.29559401]
[1758145825269,0.06,240.62,240.61,13.59559401]
[1758145825588,0.06,240.62,240.61,52.17169724]
[1758145828081,0.06,240.62,240.61,51.47169724]
[1758145828586,0.06,240.62,240.61,47.31559401]
[1758145828768,0.06,240.62,240.61,50.50971268]
[1758145829263,0.06,240.62,240.61,36.91411867]
[1758145829685,0.74,240.62,240.61,36.91411867]
[1758145830004,0.74,240.62,240.61,33.72]
[1758145831285,0.06,240.62,240.61,33.72]
[1758145831991,0.74,240.62,240.59,36.91411867]
[1758145832492,0.66,240.61,240.59,33.72]
[1758145832785,0.66,240.61,240.59,36.91411867]
[1758145832978,0.06,240.62,240.59,36.91411867]
[1758145833178,0.72,240.62,240.59,36.91411867]
[1758145833569,0.06,240.62,240.59,37.57411867]
[1758145833776,0.06,240.62,240.59,36.91411867]
[1758145834464,0.72,240.62,240.59,36.91411867]
[1758145835301,0.66,240.61,240.59,36.91411867]
[1758145835971,0.66,240.6,240.58,33.7]
[1758145836176,0.66,240.59,240.58,33.7]
[1758145836372,4.21603866,240.62,240.58,33.7]
[1758145836672,0.66,240.61,240.58,33.7]
[1758145837002,0.66,240.6,240.58,33.7]
[1758145837187,0.66,240.59,240.58,33.7]
[1758145837495,0.66,240.59,240.56,33.7]
[1758145838206,0.66,240.59,240.56,36.89411867]
[1758145838584,0.66,240.58,240.56,36.89411867]
[1758145840884,0.66,240.58,240.56,3.19411867]
[1758145841217,0.66,240.57,240.56,3.19411867]
[1758145841384,0.66,240.57,240.55,33.73]
[1758145841589,0.66,240.56,240.55,0.03]
[1758145842488,4.81696707,240.56,240.55,0.03]
[1758145842782,4.81696707,240.56,240.51,3.19411867]
[1758145843112,0.66,240.55,240.51,3.19411867]
[1758145843493,0.66,240.54,240.51,3.19411867]
[1758145843889,0.66,240.58,240.53,3.19411867]
[1758145844094,0.66,240.57,240.53,3.19411867]
[1758145844708,6.95361252,240.59,240.53,3.85411867]
[1758145844917,3.45702944,240.6,240.55,3.19411867]
[1758145845082,2.79702944,240.6,240.56,0.66]
[1758145845280,4.87607559,240.62,240.57,3.19411867]
[1758145845588,0.66,240.61,240.57,3.19411867]
[1758145848101,0.06,240.62,240.58,4.81662149]
[1758145848290,0.06,240.62,240.59,3.19411867]
[1758145848489,0.06,240.62,240.59,3.85411867]
[1758145848697,0.06,240.62,240.6,0.66]
[1758145849105,0.06,240.62,240.61,3.85411867]
[1758145849805,0.06,240.62,240.61,6.85995508]
[1758145850510,0.06,240.62,240.61,6.19995508]
[1758145852504,0.06,240.62,240.61,20.45554909]
[1758145853993,0.06,240.62,240.61,46.73987223]
[1758145854197,0.06,240.65,240.61,46.73987223]
[1758145854198,0.06,240.65,240.62,13.59559401]
[1758145854418,0.06,240.65,240.64,15.63944586]
[1758145854624,0.06,240.65,240.64,49.33944586]
[1758145854806,0.06,240.65,240.64,49.99944586]
[1758145855505,0.06,240.65,240.64,54.15503096]
[1758145858512,0.06,240.67,240.66,39.59559401]
[1758145858716,0.06,240.67,240.66,41.63944586]
[1758145858925,0.06,240.67,240.66,42.34944586]
[1758145859625,0.06,240.67,240.66,46.50468561]
[1758145861301,0.06,240.67,240.66,80.18468561]
[1758145864718,0.06,240.7,240.67,13.59559401]
[1758145864929,0.06,240.7,240.69,2.04385185]
[1758145865525,0.06,240.7,240.69,2.71385185]
[1758145865756,0.06,240.7,240.69,20.4641677]
[1758145866435,0.06,240.7,240.69,54.1241677]
[1758145869418,0.06,240.7,240.69,53.4541677]
[1758145869940,0.06,240.7,240.69,51.41031585]
[1758145870230,0.06,240.7,240.69,53.4541677]
[1758145870644,0.06,240.72,240.71,39.59559401]
[1758145870817,0.06,240.76,240.71,75.29944586]
[1758145871015,0.06,240.76,240.75,28.04385185]
[1758145871339,0.06,240.76,240.75,75.27944586]
[1758145871511,0.06,240.76,240.75,79.43313225]
[1758145873040,0.06,240.76,240.75,79.71745539]
[1758145873413,0.06,240.76,240.75,77.67360354]
[1758145873813,0.06,240.76,240.75,79.71745539]
[1758145875146,0.06,240.76,240.75,80.38745539]
[1758145876523,0.06,240.76,240.75,82.05069163]
[1758145878141,0.06,240.76,240.75,41.25883025]
[1758145878345,0.06,240.76,240.75,49.27944586]
[1758145878639,0.76,240.76,240.75,53.43313225]
[1758145878835,0.06,240.76,240.75,53.43313225]
[1758145883243,0.76,240.76,240.75,35.68385185]
[1758145883532,0.76,240.76,240.74,4.15382857]
[1758145883533,0.76,240.76,240.74,13.59559401]
[1758145883731,0.06,240.76,240.75,33.62]
[1758145884319,0.76,240.76,240.71,39.59559401]
[1758145884512,0.7,240.75,240.72,33.62]
[1758145884719,0.7,240.75,240.72,35.66385185]
[1758145885229,0.7,240.75,240.73,4.15403148]
[1758145885423,0.06,240.76,240.71,30.15429351]
[1758145885623,0.06,240.76,240.73,13.59559401]
[1758145885824,0.06,240.76,240.74,33.62]
[1758145886026,0.7,240.75,240.74,33.62]
[1758145886342,0.7,240.75,240.73,33.6]
[1758145886526,4.21358766,240.76,240.72,33.6]
[1758145886731,0.7,240.74,240.72,33.6]
[1758145886933,0.7,240.73,240.72,33.6]
[1758145887529,0.7,240.73,240.69,30.15456595]
[1758145887725,0.7,240.72,240.68,33.6]
[1758145888043,0.7,240.71,240.68,33.6]
[1758145888541,0.7,240.7,240.68,33.6]
[1758145888728,0.7,240.69,240.68,33.6]
[1758145888930,10.44378468,240.76,240.68,33.6]
[1758145889114,0.7,240.75,240.68,35.64385185]
[1758145889319,0.7,240.74,240.67,26.0]
[1758145889539,0.7,240.73,240.66,49.23944586]
[1758145889929,16.58175423,240.75,240.66,49.23944586]
[1758145890139,0.7,240.72,240.66,49.23944586]
[1758145890343,14.53790238,240.75,240.66,49.23944586]
[1758145890344,0.7,240.71,240.66,49.23944586]
[1758145890548,0.7,240.7,240.66,53.39457358]
[1758145890740,0.7,240.69,240.66,53.39457358]
[1758145891242,0.06,240.76,240.69,39.59559401]
[1758145891443,0.76,240.76,240.73,26.0]
[1758145891626,0.76,240.76,240.73,61.64385185]
[1758145891822,0.7,240.75,240.73,61.64385185]
[1758145892138,0.06,240.76,240.73,61.64385185]
[1758145892346,0.06,240.76,240.75,15.63944586]
[1758145892549,0.06,240.76,240.75,53.39313225]
[1758145892928,0.06,240.76,240.75,19.79313225]
[1758145893134,0.06,240.76,240.75,51.39313225]
[1758145895943,0.06,240.76,240.75,52.06313225]
[1758145896343,0.06,240.76,240.75,51.39313225]
[1758145898044,0.06,240.76,240.75,51.3492804]
[1758145898257,0.06,240.76,240.75,53.39313225]
[1758145899537,0.06,240.76,240.75,54.06313225]
[1758145899752,0.06,240.76,240.75,51.63360354]
[1758145899954,0.06,240.76,240.75,55.3407608]
[1758145900137,0.06,240.76,240.75,20.07745539]
[1758145900339,0.06,240.76,240.75,53.65745539]
[1758145900639,0.06,240.76,240.75,54.32745539]
[1758145902050,0.06,240.76,240.75,53.65745539]
[1758145902556,0.06,240.76,240.75,54.32745539]
[1758145902856,0.06,240.76,240.75,53.37313225]
[1758145904533,0.06,240.76,240.75,51.3292804]
[1758145904755,0.06,240.76,240.75,53.37313225]
[1758145906430,0.06,240.76,240.75,54.32745539]
[1758145906635,0.06,240.76,240.75,53.37313225]
[1758145907133,0.06,240.76,240.75,51.3292804]
[1758145907338,0.06,240.76,240.75,53.35313225]
[1758145907546,0.06,240.76,240.75,51.3092804]
[1758145907749,0.06,240.76,240.75,53.35313225]
[1758145909058,0.06,240.76,240.75,54.30745539]
[1758145909460,0.06,240.76,240.75,20.07745539]
[1758145909659,0.06,240.76,240.75,53.63745539]
[1758145910753,0.06,240.76,240.75,55.30076079]
[1758145911271,0.06,240.76,240.75,55.01643765]
[1758145911570,0.06,240.76,240.75,55.68643765]
[1758145911768,0.06,240.76,240.75,56.83056595]
[1758145912767,0.06,240.76,240.75,82.83056595]
[1758145913554,0.06,240.79,240.75,82.83056595]
[1758145913555,0.06,240.79,240.78,26.0]
[1758145913871,3.18798015,240.89,240.83,13.59559401]
[1758145913872,0.71,240.89,240.83,13.59559401]
[1758145914070,0.71,240.89,240.88,3.18798015]
[1758145914280,0.71,240.91,240.88,36.72798015]
[1758145914454,2.79266767,240.95,240.89,3.18798015]
[1758145914649,0.71,240.94,240.9,33.54]
[1758145914858,0.71,240.93,240.9,33.54]
[1758145915069,0.71,240.92,240.9,33.54]
[1758145915875,0.71,240.92,240.9,37.69107161]
[1758145916168,0.06,240.94,240.9,37.69107161]
[1758145916372,0.71,240.93,240.9,37.69107161]
[1758145916546,0.71,240.92,240.9,37.69107161]
[1758145917359,0.71,240.91,240.9,37.69107161]
[1758145917665,0.71,240.93,240.9,37.69107161]
[1758145917869,0.06,240.94,240.9,37.69107161]
[1758145917870,0.65,240.92,240.9,37.69107161]
[1758145918057,0.65,240.91,240.9,37.69107161]
[1758145918373,0.65,240.91,240.9,33.54]
[1758145918569,0.65,240.91,240.87,12.39253505]
[1758145918570,0.65,240.91,240.88,47.13559401]
[1758145918770,0.65,240.9,240.88,47.13559401]
[1758145919074,0.65,240.89,240.88,47.13559401]
[1758145919572,0.65,240.91,240.88,47.13559401]
[1758145919775,0.65,240.9,240.88,47.13559401]
[1758145919982,0.65,240.89,240.86,33.52]
[1758145920154,0.65,240.88,240.86,33.52]
[1758145920356,0.65,240.87,240.86,33.52]
[1758145920553,0.65,240.87,240.82,4.15032842]
[1758145920786,0.65,240.86,240.82,4.15032842]
[1758145920954,7.33961874,240.87,240.82,4.15032842]
[1758145920955,0.65,240.85,240.82,4.15032842]
[1758145921157,0.65,240.84,240.75,4.18352427]
[1758145921470,0.65,240.84,240.76,33.52]
[1758145921471,0.65,240.83,240.76,33.52]
[1758145921660,3.18798015,240.84,240.76,33.52]
[1758145921661,0.65,240.82,240.76,33.52]
[1758145921865,0.65,240.81,240.76,33.52]
[1758145922049,0.65,240.8,240.76,33.52]
[1758145922249,0.65,240.79,240.75,0.03]
[1758145922672,4.80306862,240.79,240.75,0.03]
[1758145922983,3.18798015,240.78,240.75,0.03]
[1758145923365,3.18798015,240.76,240.75,0.03]
[1758145923771,3.89798015,240.76,240.75,0.03]
[1758145924487,8.05149402,240.76,240.75,0.03]
[1758145925284,8.33581716,240.76,240.75,0.03]
[1758145925458,10.00043773,240.76,240.75,0.03]
[1758145925661,12.79061356,240.76,240.75,0.03]
[1758145926275,13.87991715,240.75,240.72,0.03]
[1758145926473,6.3759603,240.73,240.72,0.03]
[1758145926679,44.04999178,240.73,240.72,0.03]
[1758145926984,47.55016761,240.73,240.72,0.03]
[1758145927386,41.45853045,240.73,240.72,0.03]
[1758145927686,47.83449075,240.73,240.72,0.03]
[1758145927985,61.43008476,240.73,240.72,0.03]
[1758145928894,58.24210461,240.73,240.72,0.03]
[1758145929070,11.1265106,240.73,240.72,0.03]
[1758145929388,3.89798015,240.73,240.72,0.03]
[1758145929568,4.15420405,240.72,240.7,0.03]
[1758145929763,3.47230329,240.71,240.7,0.03]
[1758145929964,4.15454923,240.7,240.65,0.03]
[1758145930185,3.18798015,240.66,240.65,0.03]
[1758145930770,3.89798015,240.66,240.65,0.03]
[1758145931179,8.0532199,240.66,240.65,0.03]
[1758145933300,3.89798015,240.66,240.65,0.03]
[1758145934688,0.71,240.66,240.65,0.03]
[1758145935076,3.89798015,240.66,240.65,0.03]
[1758145937178,4.18230329,240.66,240.65,0.03]
[1758145938282,3.18798015,240.67,240.65,0.03]
[1758145938494,3.18798015,240.69,240.65,0.71]
[1758145938794,3.18798015,240.69,240.66,4.83523975]
[1758145938967,3.18798015,240.71,240.67,0.68]
[1758145939390,3.18798015,240.71,240.68,0.68]
[1758145940187,3.18798015,240.69,240.65,0.03]
[1758145940386,3.18798015,240.67,240.65,0.03]
[1758145940688,4.15523975,240.66,240.65,0.03]
[1758145940874,5.14956289,240.66,240.65,0.03]
[1758145941082,8.0532199,240.66,240.65,0.03]
[1758145941481,37.67500509,240.68,240.65,0.03]
[1758145941677,3.18798015,240.67,240.65,0.03]
[1758145941887,4.15500509,240.68,240.65,0.03]
[1758145942071,29.18798015,240.69,240.65,0.71]
[1758145942387,1.66489771,240.73,240.66,0.68]
[1758145942695,3.18798015,240.72,240.67,4.1550671]
[1758145942886,3.18798015,240.72,240.68,0.68]
[1758145943087,3.18798015,240.72,240.67,4.1550671]
[1758145943088,3.18798015,240.74,240.69,0.68]
[1758145943301,3.18798015,240.74,240.67,4.1550671]
[1758145943472,3.18798015,240.74,240.7,0.68]
[1758145943789,0.71,240.73,240.65,0.71]
[1758145943989,3.18798015,240.71,240.65,0.71]
[1758145944176,3.18798015,240.71,240.65,4.8653803]
[1758145944369,3.89798015,240.73,240.65,8.05336045]
[1758145944571,3.18798015,240.73,240.67,4.1550671]
[1758145944775,3.18798015,240.77,240.69,3.18798015]
[1758145944979,3.18798015,240.77,240.7,0.68]
[1758145945194,33.5,240.8,240.7,0.68]
[1758145945371,3.18798015,240.78,240.7,29.86798015]
[1758145945571,3.18798015,240.78,240.71,0.68]
[1758145945796,3.18798015,240.79,240.71,0.68]
[1758145946187,3.18798015,240.79,240.71,3.86798015]
[1758145946490,3.18798015,240.79,240.71,0.68]
[1758145946794,3.18798015,240.79,240.71,3.86798015]
[1758145947191,3.18798015,240.79,240.72,4.83420405]
[1758145947789,3.18798015,240.79,240.73,0.68]
[1758145949289,3.18798015,240.79,240.74,4.15385893]
[1758145949488,3.18798015,240.79,240.74,4.83385893]
[1758145950777,3.18798015,240.79,240.73,4.15403148]
[1758145951089,3.89798015,240.79,240.73,4.15403148]
[1758145951274,3.18798015,240.79,240.73,4.15403148]
[1758145952202,3.24798015,240.79,240.73,4.15403148]
[1758145952588,8.11098064,240.79,240.73,4.15403148]
[1758145953403,8.11098064,240.79,240.71,4.15437663]
[1758145953783,4.92300049,240.79,240.73,3.18798015]
[1758145953982,0.71,240.78,240.71,4.15437663]
[1758145954308,0.71,240.78,240.72,3.18798015]
[1758145954505,0.71,240.78,240.73,4.15403148]
[1758145954799,4.21300049,240.79,240.73,4.15403148]
[1758145955103,0.71,240.78,240.73,4.15403148]
[1758145955298,0.71,240.77,240.73,4.15403148]
[1758145956199,4.92300049,240.79,240.73,4.15403148]
[1758145957001,0.77,240.79,240.73,4.15403148]
[1758145957305,4.92299791,240.79,240.73,4.15403148]
[1758145957906,0.77,240.79,240.73,4.15403148]
[1758145958604,0.77,240.79,240.73,7.34201163]
[1758145958803,4.92300765,240.79,240.73,7.34201163]
[1758145958992,4.92300765,240.79,240.74,3.18798015]
[1758145959303,0.71,240.78,240.72,7.3421842]
[1758145959503,0.71,240.78,240.73,3.18798015]
[1758145959811,4.21300765,240.79,240.69,10.38670814]
[1758145959812,3.18798015,240.76,240.69,17.75031585]
[1758145959985,0.71,240.75,240.67,3.18798015]
[1758145960310,0.71,240.74,240.66,3.18798015]
[1758145960496,3.89798015,240.73,240.66,3.18798015]
[1758145960702,0.71,240.72,240.65,0.03]
[1758145961081,0.71,240.77,240.66,0.69]
[1758145961410,3.18798015,240.75,240.67,3.18798015]
[1758145961713,3.18798015,240.73,240.65,3.21798015]
[1758145961915,0.71,240.72,240.65,3.21798015]
[1758145962586,4.86433725,240.72,240.65,7.37339234]
[1758145963796,0.71,240.72,240.65,7.37339234]
[1758145964206,0.71,240.72,240.65,8.06339234]
[1758145967490,4.43820938,240.74,240.65,7.37339234]
[1758145967690,0.71,240.73,240.65,7.37325046]
[1758145967997,3.89798015,240.72,240.65,0.03]
[1758145968193,29.18798015,240.7,240.65,0.03]
[1758145968405,3.18798015,240.68,240.65,0.03]
[1758145968915,0.71,240.67,240.65,0.03]
[1758145969223,0.99432314,240.67,240.65,0.03]
[1758145969602,33.62754304,240.66,240.65,0.03]
[1758145969809,36.41612233,240.66,240.65,0.03]
[1758145970003,37.12612233,240.66,240.65,0.03]
[1758145971925,49.57896496,240.66,240.65,0.03]
[1758145972104,39.59559401,240.62,240.6,0.03]
[1758145972307,0.28432314,240.57,240.51,0.03]
[1758145972499,2.04522877,240.55,240.51,0.03]
[1758145972697,0.71,240.54,240.51,0.03]
[1758145972897,0.71,240.54,240.46,0.72]
[1758145972898,39.59559401,240.49,240.46,0.03]
[1758145973113,39.59559401,240.41,240.4,0.2]
[1758145973317,42.66865557,240.41,240.4,0.2]
[1758145973519,82.10189433,240.41,240.4,0.2]
[1758145974032,84.88479199,240.41,240.4,0.2]
[1758145974202,51.24479199,240.41,240.4,0.2]
[1758145974397,49.19956322,240.41,240.4,0.2]
[1758145974594,78.06233358,240.41,240.4,0.2]
[1758145974814,80.84009396,240.41,240.4,0.2]
[1758145975016,79.1729063,240.41,240.4,0.2]
[1758145975201,76.39514592,240.41,240.4,0.2]
[1758145979321,76.41514592,240.41,240.4,0.2]
[1758145979906,74.36991715,240.41,240.4,0.2]
[1758145980103,76.41514592,240.41,240.4,0.2]
[1758145981120,74.36991715,240.41,240.4,0.2]
[1758145981326,76.41514592,240.41,240.4,0.2]
[1758145987819,75.56514592,240.41,240.4,0.2]
[1758145988213,35.94955191,240.41,240.4,0.2]
[1758145988830,35.92955191,240.41,240.4,0.2]
[1758145990013,2.32955191,240.41,240.4,0.2]
[1758145990222,35.90955191,240.41,240.4,0.2]
[1758145990422,50.20514592,240.41,240.4,0.2]
[1758145992534,54.36470667,240.41,240.4,0.2]
[1758145996313,54.32470667,240.41,240.4,0.2]
[1758145997010,20.78470667,240.41,240.4,0.2]
[1758145997231,54.32470667,240.41,240.4,0.2]
[1758145998736,57.07381209,240.41,240.4,0.2]
[1758145999322,13.59559401,240.38,240.37,0.03]
[1758145999518,0.28432314,240.33,240.32,0.03]
[1758145999716,49.46514592,240.33,240.32,0.03]
[1758145999917,50.16514592,240.33,240.32,0.03]
[1758146001417,54.32609128,240.33,240.32,0.03]
[1758146001736,66.93882227,240.33,240.32,0.03]
[1758146002124,33.39882227,240.33,240.32,0.03]
[1758146002328,33.39882227,240.33,240.3,0.03]
[1758146002329,39.87991715,240.31,240.3,0.03]
[1758146002534,78.33664989,240.31,240.3,0.03]
[1758146002736,76.99142112,240.31,240.3,0.03]
[1758146002929,43.33142112,240.31,240.3,0.03]
[1758146003234,79.03664989,240.31,240.3,0.03]
[1758146003438,83.19794155,240.31,240.3,0.03]
[1758146003828,81.15271278,240.31,240.3,0.03]
[1758146004028,83.19794155,240.31,240.3,0.03]
[1758146004230,80.14838964,240.31,240.3,0.03]
[1758146004539,82.19361841,240.31,240.3,0.68]
[1758146004719,82.19361841,240.31,240.3,0.03]
[1758146005139,2.04522877,240.4,240.3,0.68]
[1758146005342,2.04522877,240.38,240.3,0.68]
[1758146005528,0.28432314,240.35,240.3,0.68]
[1758146005730,34.24432314,240.35,240.3,0.68]
[1758146005929,0.28432314,240.35,240.3,0.68]
[1758146006137,0.28432314,240.35,240.3,4.84145009]
[1758146006439,33.96,240.34,240.31,0.65]
[1758146007640,33.96,240.34,240.3,0.03]
[1758146007641,0.28432314,240.33,240.3,0.03]
[1758146007844,0.28432314,240.31,240.3,0.03]
[1758146008021,15.92514592,240.31,240.3,0.03]
[1758146008228,16.62514592,240.31,240.3,0.03]
[1758146009544,20.78643758,240.31,240.3,0.03]
[1758146010247,54.82643758,240.31,240.3,0.03]
[1758146011019,54.82643758,240.31,240.2,0.65]
[1758146011020,13.59559401,240.21,240.15,0.2]
[1758146011227,26.0,240.17,240.15,0.2]
[1758146011448,48.81991715,240.16,240.15,0.2]
[1758146011646,20.08903665,240.16,240.15,0.2]
[1758146011854,55.06903665,240.16,240.15,0.2]
[1758146012057,18.04380788,240.16,240.15,0.2]
[1758146012230,20.08903665,240.16,240.15,0.2]
[1758146012426,53.04380788,240.16,240.15,0.2]
[1758146012658,35.26432314,240.16,240.15,0.92]
[1758146013735,34.98,240.16,240.15,0.92]
[1758146014260,34.96,240.16,240.15,0.92]
[1758146015159,34.96,240.17,240.15,0.92]
[1758146015456,35.24432314,240.17,240.16,0.72]
[1758146016037,0.28432314,240.16,240.15,0.2]
[1758146017249,38.00492253,240.16,240.15,0.2]
[1758146020273,38.68492253,240.16,240.15,0.2]
[1758146020632,52.28051654,240.16,240.15,0.2]
[1758146020855,51.60051654,240.16,240.15,0.2]
[1758146021036,52.28051654,240.16,240.15,0.2]
[1758146024175,72.28828391,240.16,240.15,0.2]
[1758146024476,92.28828391,240.16,240.15,0.2]
[1758146024768,39.59559401,240.13,240.12,0.03]
[1758146024938,79.52574531,240.13,240.12,0.03]
[1758146025140,80.20574531,240.13,240.12,0.03]
[1758146025550,80.18574531,240.13,240.12,0.03]
[1758146025874,45.38574531,240.13,240.12,0.03]
[1758146026072,80.16574531,240.13,240.12,0.03]
[1758146027357,80.14574531,240.13,240.12,0.03]
[1758146028043,44.70574531,240.13,240.12,0.03]
[1758146028262,7.07140766,240.16,240.12,0.75]
[1758146028569,34.72,240.15,240.13,0.72]
[1758146028757,0.28432314,240.16,240.14,0.72]
[1758146028942,0.28432314,240.14,240.12,0.03]
[1758146029340,34.74,240.15,240.12,0.03]
[1758146029538,0.28432314,240.14,240.13,0.72]
[1758146029949,34.74,240.15,240.13,0.72]
[1758146030149,34.74,240.15,240.14,0.72]
[1758146030348,2.04522877,240.17,240.14,0.72]
[1758146030655,34.7,240.15,240.12,0.03]
[1758146030849,34.7,240.16,240.12,0.03]
[1758146031040,34.7,240.16,240.13,0.72]
[1758146031245,34.7,240.16,240.12,0.03]
[1758146031246,34.7,240.16,240.14,0.72]
[1758146032165,0.28432314,240.15,240.14,0.72]
[1758146032470,0.28432314,240.18,240.14,0.72]
[1758146032646,34.64,240.18,240.14,0.72]
[1758146033050,26.34432314,240.22,240.14,0.72]
[1758146033265,0.34432314,240.22,240.14,0.72]
[1758146033564,34.66,240.21,240.14,0.72]
[1758146033945,0.06,240.22,240.15,3.20677354]
[1758146034145,34.64,240.21,240.16,0.72]
[1758146035153,34.64,240.21,240.17,0.72]
[1758146035346,34.64,240.21,240.18,0.72]
[1758146035562,0.06,240.22,240.19,0.72]
[1758146035759,0.06,240.22,240.2,3.20677354]
[1758146036149,0.06,240.22,240.21,0.72]
[1758146040653,0.06,240.22,240.21,3.92677354]
[1758146041462,0.06,240.22,240.21,0.72]
[1758146041774,0.06,240.22,240.21,3.92677354]
[1758146041979,0.06,240.22,240.21,0.72]
[1758146042345,0.06,240.22,240.21,3.92677354]
[1758146043774,0.06,240.22,240.21,0.72]
[1758146043977,0.06,240.22,240.21,3.92677354]
[1758146044547,0.06,240.22,240.21,0.72]
[1758146044746,0.06,240.22,240.21,3.92677354]
[1758146045373,0.06,240.22,240.21,0.72]
[1758146045564,0.06,240.22,240.2,3.20677354]
[1758146046166,0.06,240.22,240.2,3.91677354]
[1758146046956,0.06,240.22,240.21,3.20677354]
[1758146048386,0.06,240.22,240.18,0.71]
[1758146048581,0.06,240.22,240.21,3.20677354]
[1758146049865,0.06,240.22,240.2,3.20677354]
[1758146050082,0.06,240.22,240.2,3.91677354]
[1758146051191,0.06,240.22,240.2,3.20677354]
[1758146059794,0.06,240.22,240.18,0.71]
[1758146059969,0.06,240.22,240.16,3.20677354]
[1758146059970,0.69,240.21,240.16,3.20677354]
[1758146060178,0.69,240.2,240.16,3.20677354]
[1758146060473,0.75,240.22,240.16,3.20677354]
[1758146061892,0.75,240.22,240.15,0.74]
[1758146062201,0.75,240.22,240.16,3.20677354]
[1758146064500,0.75,240.22,240.16,3.91677354]
[1758146064684,0.75,240.22,240.16,0.71]
[1758146065000,0.75,240.22,240.17,3.20677354]
[1758146065194,0.75,240.22,240.17,3.91677354]
[1758146065773,0.69,240.21,240.15,0.03]
[1758146065978,0.69,240.21,240.15,3.23677354]
[1758146069117,0.69,240.21,240.15,0.03]
[1758146069771,0.06,240.22,240.15,3.23677354]
[1758146069975,0.06,240.22,240.16,0.71]
[1758146070679,0.06,240.22,240.17,3.20677354]
[1758146070876,0.06,240.22,240.21,16.80236755]
[1758146071078,0.06,240.24,240.23,39.59559401]
[1758146071303,0.06,240.24,240.23,42.80236755]
[1758146071474,0.06,240.24,240.23,43.46236755]
[1758146072698,0.06,240.24,240.23,77.42236755]
[1758146073404,0.06,240.24,240.23,77.83863529]
[1758146075391,0.06,240.24,240.23,78.12295843]
[1758146077415,0.06,240.24,240.23,52.12295843]
[1758146077603,0.06,240.24,240.23,72.12295843]
[1758146078516,0.06,240.24,240.23,151.02295843]
[1758146078809,0.06,240.24,240.23,150.60669069]
[1758146079502,0.06,240.24,240.23,153.81346423]
[1758146080097,0.06,240.24,240.23,133.81346423]
[1758146081498,0.06,240.24,240.23,135.47995731]
[1758146081822,0.06,240.24,240.23,101.51995731]
[1758146082118,0.06,240.24,240.23,135.27995731]
[1758146082608,0.06,240.24,240.23,56.37995731]
[1758146082794,0.06,240.24,240.23,135.69622505]
[1758146082997,0.06,240.24,240.23,155.27995731]
[1758146084507,0.06,240.25,240.24,13.87991715]
[1758146084702,0.06,240.25,240.24,93.85616756]
[1758146084900,0.06,240.26,240.24,93.43991715]
[1758146085095,0.06,240.26,240.25,18.16292378]
[1758146085516,0.06,240.26,240.25,51.22292378]
[1758146086515,0.06,240.26,240.25,51.88292378]
[1758146090438,0.06,240.26,240.25,130.78292378]
[1758146090637,0.06,240.26,240.25,130.36669069]
[1758146091624,3.20677354,240.43,240.29,39.59559401]
[1758146091833,3.20677354,240.43,240.34,14.56270282]
[1758146092018,3.20677354,240.43,240.35,33.72]